[Event "*** Titled Tuesday Blitz"]
[Site "Chess.com"]
[Date "2020.04.28"]
[Round "1"]
[White "Barys1974"]
[Black "goldenspine"]
[Result "1-0"]
[WhiteElo "2627"]
[BlackElo "2303"]
[TimeControl "180+1"]
[EndTime "10:05:49 PDT"]
[Termination "Barys1974 won by resignation"]

1. e4 {[%clk 0:03:00.9]} 1... c6 {[%clk 0:02:59.5]} 2. d4 {[%clk 0:03:00.3]}
2... d5 {[%clk 0:03:00.4]} 3. e5 {[%clk 0:03:00.5]} 3... Bf5 {[%clk 0:03:00.2]}
4. Nd2 {[%clk 0:03:00.6]} 4... e6 {[%clk 0:02:55.9]} 5. Nb3 {[%clk 0:03:01]}
5... Nd7 {[%clk 0:02:51.9]} 6. Nf3 {[%clk 0:03:00.2]} 6... Ne7 {[%clk 0:02:44]}
7. Be2 {[%clk 0:02:59.6]} 7... h6 {[%clk 0:02:42]} 8. O-O {[%clk 0:02:58.4]}
8... g5 {[%clk 0:02:36.3]} 9. Ne1 {[%clk 0:02:52.9]} 9... Bg7 {[%clk 0:02:07.1]}
10. f4 {[%clk 0:02:49]} 10... Ng6 {[%clk 0:02:02.7]} 11. Bd3 {[%clk 0:02:45.2]}
11... Bxd3 {[%clk 0:01:51.7]} 12. Nxd3 {[%clk 0:02:44.5]} 12... gxf4 {[%clk
0:01:41.5]} 13. Nxf4 {[%clk 0:02:43.4]} 13... Nxf4 {[%clk 0:01:40.6]} 14. Bxf4
{[%clk 0:02:43]} 14... Qe7 {[%clk 0:01:39.1]} 15. Qh5 {[%clk 0:02:34.7]} 15...
O-O-O {[%clk 0:01:31.8]} 16. Rf3 {[%clk 0:02:31.6]} 16... f6 {[%clk 0:01:30.2]}
17. exf6 {[%clk 0:02:24.1]} 17... Bxf6 {[%clk 0:01:19.9]} 18. Re1 {[%clk
0:02:21.3]} 18... Rdg8 {[%clk 0:01:01.2]} 19. Qh3 {[%clk 0:02:20.2]} 19... Nf8
{[%clk 0:00:55.3]} 20. c3 {[%clk 0:02:18.8]} 20... b6 {[%clk 0:00:53.7]} 21. Nc1
{[%clk 0:02:08]} 21... Kd7 {[%clk 0:00:53.4]} 22. Nd3 {[%clk 0:02:07.9]} 22...
Ng6 {[%clk 0:00:52.9]} 23. Bg3 {[%clk 0:02:03.9]} 23... h5 {[%clk 0:00:43.9]}
24. Rfe3 {[%clk 0:02:00.6]} 24... Nf8 {[%clk 0:00:40.6]} 25. Nf4 {[%clk
0:01:58.7]} 25... h4 {[%clk 0:00:34.7]} 26. Nxe6 {[%clk 0:01:34.6]} 26... hxg3
{[%clk 0:00:16.9]} 27. Nxf8+ {[%clk 0:01:34.2]} 27... Kd8 {[%clk 0:00:16.2]} 28.
Rxe7 {[%clk 0:01:32.9]} 28... Rxh3 {[%clk 0:00:12.2]} 29. Re8+ {[%clk 0:01:32]}
29... Kc7 {[%clk 0:00:12.4]} 30. gxh3 {[%clk 0:01:27.8]} 30... g2 {[%clk
0:00:10.9]} 31. Ne6+ {[%clk 0:01:26]} 31... Kd7 {[%clk 0:00:08.1]} 32. Rxg8
{[%clk 0:01:25.6]} 1-0

[Event "*** Titled Tuesday Blitz"]
[Site "Chess.com"]
[Date "2020.04.28"]
[Round "1"]
[White "TomasKapitanchuk"]
[Black "Bigfish1995"]
[Result "0-1"]
[WhiteElo "2468"]
[BlackElo "3098"]
[TimeControl "180+1"]
[EndTime "10:05:50 PDT"]
[Termination "Bigfish1995 won on time"]

1. e4 {[%clk 0:03:00.9]} 1... c5 {[%clk 0:02:59.6]} 2. Nf3 {[%clk 0:03:01.1]}
2... d6 {[%clk 0:03:00]} 3. Bb5+ {[%clk 0:03:01.5]} 3... Nd7 {[%clk 0:02:58.6]}
4. O-O {[%clk 0:03:00.9]} 4... Nf6 {[%clk 0:02:56.8]} 5. Re1 {[%clk 0:03:00.5]}
5... a6 {[%clk 0:02:54]} 6. Bd3 {[%clk 0:02:59]} 6... e6 {[%clk 0:02:42.7]} 7.
c3 {[%clk 0:02:57.1]} 7... b5 {[%clk 0:02:42.8]} 8. Bc2 {[%clk 0:02:56.3]} 8...
Bb7 {[%clk 0:02:41]} 9. a4 {[%clk 0:02:48.6]} 9... Be7 {[%clk 0:02:39.6]} 10. d4
{[%clk 0:02:45.5]} 10... O-O {[%clk 0:02:36.6]} 11. Nbd2 {[%clk 0:02:37.7]}
11... Qc7 {[%clk 0:02:14.1]} 12. Bd3 {[%clk 0:02:30.2]} 12... Bc6 {[%clk
0:02:04.5]} 13. d5 {[%clk 0:02:13.2]} 13... exd5 {[%clk 0:01:59.3]} 14. exd5
{[%clk 0:02:09.1]} 14... Nxd5 {[%clk 0:01:59.8]} 15. Ne4 {[%clk 0:01:15.5]}
15... N7f6 {[%clk 0:01:55.7]} 16. Nxf6+ {[%clk 0:01:09.6]} 16... Nxf6 {[%clk
0:01:51.8]} 17. Bf4 {[%clk 0:01:04.3]} 17... Rfe8 {[%clk 0:01:49.4]} 18. Ng5
{[%clk 0:00:54.9]} 18... Bf8 {[%clk 0:01:41.6]} 19. Rxe8 {[%clk 0:00:49.8]}
19... Rxe8 {[%clk 0:01:40.9]} 20. axb5 {[%clk 0:00:50.7]} 20... axb5 {[%clk
0:01:41.5]} 21. Bc2 {[%clk 0:00:33.2]} 21... h6 {[%clk 0:01:40.8]} 22. Nf3
{[%clk 0:00:27.4]} 22... Qb7 {[%clk 0:01:40.2]} 23. Qd3 {[%clk 0:00:20.3]} 23...
Be4 {[%clk 0:01:39.8]} 24. Qd2 {[%clk 0:00:20.6]} 24... Bxf3 {[%clk 0:01:39.1]}
25. gxf3 {[%clk 0:00:19.5]} 25... Qxf3 {[%clk 0:01:40]} 26. Bg3 {[%clk
0:00:16.5]} 26... d5 {[%clk 0:01:40]} 27. Qd3 {[%clk 0:00:16.2]} 27... Qxd3
{[%clk 0:01:39.4]} 28. Bxd3 {[%clk 0:00:17.1]} 28... c4 {[%clk 0:01:40.2]} 29.
Bf5 {[%clk 0:00:16.8]} 29... Re2 {[%clk 0:01:40.2]} 30. Ra8 {[%clk 0:00:11]}
30... g6 {[%clk 0:01:40.5]} 31. Bd6 {[%clk 0:00:09.6]} 31... Re8 {[%clk
0:01:39.4]} 32. Rxe8 {[%clk 0:00:07.5]} 32... Nxe8 {[%clk 0:01:40.3]} 33. Bxf8
{[%clk 0:00:07.5]} 33... Kxf8 {[%clk 0:01:41.2]} 0-1

[Event "*** Titled Tuesday Blitz"]
[Site "Chess.com"]
[Date "2020.04.28"]
[Round "1"]
[White "Zurability"]
[Black "Mashenka97"]
[Result "1-0"]
[WhiteElo "2707"]
[BlackElo "2368"]
[TimeControl "180+1"]
[EndTime "10:05:51 PDT"]
[Termination "Zurability won on time"]

1. d4 {[%clk 0:03:00.9]} 1... Nf6 {[%clk 0:01:50.4]} 2. c4 {[%clk 0:03:00.9]}
2... g6 {[%clk 0:01:45.3]} 3. Nc3 {[%clk 0:02:59.8]} 3... Bg7 {[%clk 0:01:42.9]}
4. e4 {[%clk 0:02:59.8]} 4... d6 {[%clk 0:01:43]} 5. Nf3 {[%clk 0:03:00.1]} 5...
O-O {[%clk 0:01:42.7]} 6. h3 {[%clk 0:02:59.9]} 6... Nc6 {[%clk 0:01:42.1]} 7.
Be3 {[%clk 0:02:56.1]} 7... e5 {[%clk 0:01:41.8]} 8. d5 {[%clk 0:02:56.3]} 8...
Ne7 {[%clk 0:01:41.6]} 9. g4 {[%clk 0:02:56.4]} 9... h5 {[%clk 0:01:40.9]} 10.
g5 {[%clk 0:02:55]} 10... Nd7 {[%clk 0:01:38.6]} 11. Nd2 {[%clk 0:02:53.6]}
11... c6 {[%clk 0:01:35]} 12. h4 {[%clk 0:02:53.4]} 12... cxd5 {[%clk
0:01:34.1]} 13. cxd5 {[%clk 0:02:54.3]} 13... a6 {[%clk 0:01:32.8]} 14. a4
{[%clk 0:02:53.5]} 14... b6 {[%clk 0:01:30.9]} 15. Nc4 {[%clk 0:02:50.3]} 15...
Qc7 {[%clk 0:01:29.5]} 16. Rc1 {[%clk 0:02:46.3]} 16... Bb7 {[%clk 0:01:28.6]}
17. Qb3 {[%clk 0:02:39.5]} 17... f5 {[%clk 0:01:18.3]} 18. Nxb6 {[%clk 0:02:05]}
18... f4 {[%clk 0:01:07.2]} 19. Nxa8 {[%clk 0:01:44.3]} 19... Bxa8 {[%clk
0:00:59.5]} 20. Bd2 {[%clk 0:01:43.1]} 20... Nc5 {[%clk 0:00:57.8]} 21. Qc4
{[%clk 0:01:40.4]} 21... Qd7 {[%clk 0:00:49.8]} 22. Bh3 {[%clk 0:01:37]} 22...
Qe8 {[%clk 0:00:47.6]} 23. b4 {[%clk 0:01:36]} 23... Nxa4 {[%clk 0:00:46.3]} 24.
Be6+ {[%clk 0:01:34.2]} 24... Kh7 {[%clk 0:00:44.3]} 25. Nxa4 {[%clk 0:01:34.7]}
25... Qxa4 {[%clk 0:00:43.1]} 26. O-O {[%clk 0:01:35.6]} 26... f3 {[%clk
0:00:27.9]} 27. Qc7 {[%clk 0:01:31.8]} 27... Qa2 {[%clk 0:00:20.8]} 28. Qxe7
{[%clk 0:01:28.3]} 28... Qxd2 {[%clk 0:00:19.8]} 29. Rc7 {[%clk 0:01:28.7]} 1-0

[Event "*** Titled Tuesday Blitz"]
[Site "Chess.com"]
[Date "2020.04.28"]
[Round "1"]
[White "Biranidun"]
[Black "Piotrek1979"]
[Result "1-0"]
[WhiteElo "2723"]
[BlackElo "2385"]
[TimeControl "180+1"]
[EndTime "10:05:52 PDT"]
[Termination "Biranidun won on time"]

1. e4 {[%clk 0:02:53.5]} 1... c5 {[%clk 0:02:59.3]} 2. Nf3 {[%clk 0:02:53.3]}
2... e6 {[%clk 0:02:58.6]} 3. d4 {[%clk 0:02:54]} 3... cxd4 {[%clk 0:02:58.9]}
4. Nxd4 {[%clk 0:02:54.9]} 4... a6 {[%clk 0:02:59.2]} 5. Bd3 {[%clk 0:02:53.8]}
5... Nf6 {[%clk 0:02:58.1]} 6. O-O {[%clk 0:02:52.8]} 6... d6 {[%clk 0:02:56.9]}
7. c4 {[%clk 0:02:51.1]} 7... Nbd7 {[%clk 0:02:56.8]} 8. Nc3 {[%clk 0:02:49.4]}
8... b6 {[%clk 0:02:57.1]} 9. Qe2 {[%clk 0:02:47.1]} 9... Bb7 {[%clk 0:02:56.8]}
10. f4 {[%clk 0:02:47.3]} 10... Qc7 {[%clk 0:02:55.7]} 11. f5 {[%clk 0:02:45.4]}
11... exf5 {[%clk 0:02:21.1]} 12. exf5+ {[%clk 0:02:37.1]} 12... Ne5 {[%clk
0:02:20.8]} 13. Bg5 {[%clk 0:02:36.4]} 13... Qc5 {[%clk 0:02:07.5]} 14. Be3
{[%clk 0:02:31.7]} 14... Nfg4 {[%clk 0:01:40.9]} 15. Ne4 {[%clk 0:02:29.8]}
15... Bxe4 {[%clk 0:01:25.7]} 16. Bxe4 {[%clk 0:02:30.7]} 16... Nxe3 {[%clk
0:01:25.4]} 17. Qxe3 {[%clk 0:02:28.7]} 17... Rc8 {[%clk 0:01:04.9]} 18. f6
{[%clk 0:02:28.2]} 18... g6 {[%clk 0:01:03.8]} 19. Bd5 {[%clk 0:02:25.8]} 19...
h5 {[%clk 0:00:57.6]} 20. Rad1 {[%clk 0:02:12]} 20... Bh6 {[%clk 0:00:57.4]} 21.
Qg3 {[%clk 0:01:52.1]} 21... h4 {[%clk 0:00:56.8]} 22. Qh3 {[%clk 0:01:43.9]}
22... Bg5 {[%clk 0:00:47.5]} 23. Kh1 {[%clk 0:01:42.5]} 23... O-O {[%clk
0:00:47.2]} 24. b3 {[%clk 0:01:35.6]} 24... b5 {[%clk 0:00:46.5]} 25. Nf5 {[%clk
0:01:28.9]} 25... gxf5 {[%clk 0:00:27.2]} 26. Qxf5 {[%clk 0:01:28.7]} 26... Bh6
{[%clk 0:00:08.7]} 27. Rde1 {[%clk 0:01:29]} 27... Kh8 {[%clk 0:00:09]} 28. Qh5
{[%clk 0:01:28.8]} 28... Kh7 {[%clk 0:00:05.9]} 29. Be4+ {[%clk 0:01:25.6]}
29... Ng6 {[%clk 0:00:05.5]} 30. Bxg6+ {[%clk 0:01:26]} 30... fxg6 {[%clk
0:00:05.9]} 31. Re7+ {[%clk 0:01:26.7]} 1-0

[Event "*** Titled Tuesday Blitz"]
[Site "Chess.com"]
[Date "2020.04.28"]
[Round "1"]
[White "Gurvich_Vitaly"]
[Black "RianKapriaga"]
[Result "1-0"]
[WhiteElo "2534"]
[BlackElo "2185"]
[TimeControl "180+1"]
[EndTime "10:05:52 PDT"]
[Termination "Gurvich_Vitaly won on time"]

1. e4 {[%clk 0:02:59.9]} 1... e5 {[%clk 0:02:59.4]} 2. Nf3 {[%clk 0:02:57.8]}
2... Nc6 {[%clk 0:02:59.6]} 3. Bb5 {[%clk 0:02:56.9]} 3... a6 {[%clk 0:02:58.9]}
4. Bxc6 {[%clk 0:02:56.4]} 4... dxc6 {[%clk 0:02:58.7]} 5. O-O {[%clk
0:02:57.3]} 5... Bg4 {[%clk 0:02:57.7]} 6. d3 {[%clk 0:02:57.4]} 6... Ne7 {[%clk
0:02:56]} 7. h3 {[%clk 0:02:57.2]} 7... h5 {[%clk 0:02:53.1]} 8. Be3 {[%clk
0:02:55.4]} 8... Ng6 {[%clk 0:02:52.2]} 9. Nbd2 {[%clk 0:02:54.8]} 9... Qf6
{[%clk 0:02:46.1]} 10. c3 {[%clk 0:02:50.8]} 10... Bd6 {[%clk 0:02:45.2]} 11. d4
{[%clk 0:02:50.9]} 11... Bxf3 {[%clk 0:02:43.5]} 12. Nxf3 {[%clk 0:02:50.3]}
12... Nf4 {[%clk 0:02:42.2]} 13. Bxf4 {[%clk 0:02:49.9]} 13... exf4 {[%clk
0:02:39.2]} 14. e5 {[%clk 0:02:48.8]} 14... Qf5 {[%clk 0:02:35.4]} 15. exd6
{[%clk 0:02:48]} 15... O-O-O {[%clk 0:02:35.7]} 16. Re1 {[%clk 0:02:48.9]} 16...
cxd6 {[%clk 0:02:33]} 17. Qe2 {[%clk 0:02:27.3]} 17... g5 {[%clk 0:02:27.9]} 18.
Qe4 {[%clk 0:02:24.1]} 18... Qd7 {[%clk 0:02:00.9]} 19. Nxg5 {[%clk 0:02:21.2]}
19... Rdg8 {[%clk 0:01:54.5]} 20. Qxf4 {[%clk 0:02:19.5]} 20... Rg6 {[%clk
0:01:39.6]} 21. h4 {[%clk 0:02:16.6]} 21... f6 {[%clk 0:01:35.7]} 22. Ne6 {[%clk
0:02:12.3]} 22... Rhg8 {[%clk 0:01:20.5]} 23. g3 {[%clk 0:02:11.4]} 23... Kb8
{[%clk 0:00:49.2]} 24. d5 {[%clk 0:02:10.2]} 24... cxd5 {[%clk 0:00:45.7]} 25.
Rad1 {[%clk 0:02:09.9]} 25... Rg4 {[%clk 0:00:28.2]} 26. Qxf6 {[%clk 0:02:05.8]}
26... Ka7 {[%clk 0:00:23.9]} 27. Rxd5 {[%clk 0:02:02.6]} 27... Qc6 {[%clk
0:00:23.3]} 28. Rg5 {[%clk 0:01:59.4]} 28... R8xg5 {[%clk 0:00:16.8]} 29. hxg5
{[%clk 0:02:00.3]} 29... h4 {[%clk 0:00:09.3]} 30. Nd4 {[%clk 0:01:53.6]} 30...
Qd5 {[%clk 0:00:05]} 31. Qf5 {[%clk 0:01:50]} 1-0

[Event "*** Titled Tuesday Blitz"]
[Site "Chess.com"]
[Date "2020.04.28"]
[Round "1"]
[White "GOGIEFF"]
[Black "louis198"]
[Result "1-0"]
[WhiteElo "2977"]
[BlackElo "2463"]
[TimeControl "180+1"]
[EndTime "10:05:53 PDT"]
[Termination "GOGIEFF won by resignation"]

1. d4 {[%clk 0:02:59.7]} 1... Nf6 {[%clk 0:02:55.6]} 2. c4 {[%clk 0:02:58.8]}
2... c5 {[%clk 0:02:55.6]} 3. d5 {[%clk 0:02:58.4]} 3... b5 {[%clk 0:02:55.8]}
4. cxb5 {[%clk 0:02:58.6]} 4... a6 {[%clk 0:02:53.8]} 5. bxa6 {[%clk 0:02:58.7]}
5... Bxa6 {[%clk 0:02:53.7]} 6. Nc3 {[%clk 0:02:58.3]} 6... d6 {[%clk
0:02:54.1]} 7. Nf3 {[%clk 0:02:55.4]} 7... Nbd7 {[%clk 0:02:54.2]} 8. e4 {[%clk
0:02:54.2]} 8... Bxf1 {[%clk 0:02:53.6]} 9. Kxf1 {[%clk 0:02:55.1]} 9... g6
{[%clk 0:02:54]} 10. g3 {[%clk 0:02:55.3]} 10... Bg7 {[%clk 0:02:54.5]} 11. Kg2
{[%clk 0:02:55.5]} 11... O-O {[%clk 0:02:55.1]} 12. h3 {[%clk 0:02:55.9]} 12...
Qa5 {[%clk 0:02:55]} 13. Re1 {[%clk 0:02:55.1]} 13... Ne8 {[%clk 0:02:40.7]} 14.
Bg5 {[%clk 0:02:48.8]} 14... f6 {[%clk 0:02:40.5]} 15. Bd2 {[%clk 0:02:47.1]}
15... Nc7 {[%clk 0:02:40.2]} 16. Qc2 {[%clk 0:02:36.5]} 16... Ne5 {[%clk
0:02:32.2]} 17. Nxe5 {[%clk 0:02:27.6]} 17... fxe5 {[%clk 0:02:30.8]} 18. a4
{[%clk 0:02:21.4]} 18... Qa6 {[%clk 0:02:23]} 19. Be3 {[%clk 0:02:12.5]} 19...
Qb7 {[%clk 0:02:13.6]} 20. Rab1 {[%clk 0:02:05.8]} 20... Na6 {[%clk 0:02:11.5]}
21. b3 {[%clk 0:02:00.8]} 21... Nb4 {[%clk 0:02:11.5]} 22. Qe2 {[%clk
0:02:01.1]} 22... Rf7 {[%clk 0:01:55.5]} 23. Rec1 {[%clk 0:01:49.3]} 23... Raf8
{[%clk 0:01:46.8]} 24. Na2 {[%clk 0:01:46.6]} 24... Nxd5 {[%clk 0:00:57.1]} 25.
exd5 {[%clk 0:01:42.5]} 25... Qxd5+ {[%clk 0:00:58]} 26. Kg1 {[%clk 0:01:38.4]}
26... e4 {[%clk 0:00:58.3]} 27. Nc3 {[%clk 0:01:27.8]} 27... Qf5 {[%clk
0:00:56.9]} 28. Qg4 {[%clk 0:01:22.8]} 28... Bd4 {[%clk 0:00:43.1]} 29. Qxf5
{[%clk 0:01:13.8]} 29... gxf5 {[%clk 0:00:43.2]} 30. Ne2 {[%clk 0:01:07.9]}
30... e5 {[%clk 0:00:42.7]} 31. b4 {[%clk 0:01:02.1]} 31... f4 {[%clk
0:00:42.9]} 32. gxf4 {[%clk 0:01:00.2]} 32... exf4 {[%clk 0:00:39.4]} 33. Bxd4
{[%clk 0:01:00.4]} 33... cxd4 {[%clk 0:00:38.5]} 34. Nxd4 {[%clk 0:01:01.3]}
34... f3 {[%clk 0:00:38.4]} 35. Kh2 {[%clk 0:01:00.8]} 1-0

[Event "*** Titled Tuesday Blitz"]
[Site "Chess.com"]
[Date "2020.04.28"]
[Round "1"]
[White "ntmh281"]
[Black "aNaartjieZA"]
[Result "0-1"]
[WhiteElo "2273"]
[BlackElo "2603"]
[TimeControl "180+1"]
[EndTime "10:05:56 PDT"]
[Termination "aNaartjieZA won on time"]

1. d4 {[%clk 0:01:55.9]} 1... Nf6 {[%clk 0:02:59.3]} 2. Nf3 {[%clk 0:01:54.9]}
2... c5 {[%clk 0:02:58.8]} 3. d5 {[%clk 0:01:54.2]} 3... d6 {[%clk 0:02:58.1]}
4. Nc3 {[%clk 0:01:53.7]} 4... e5 {[%clk 0:02:57.9]} 5. e4 {[%clk 0:01:52.1]}
5... Be7 {[%clk 0:02:57.8]} 6. Be2 {[%clk 0:01:52.6]} 6... Nbd7 {[%clk
0:02:57.6]} 7. O-O {[%clk 0:01:52]} 7... Nf8 {[%clk 0:02:57.4]} 8. Nd2 {[%clk
0:01:51.1]} 8... Ng6 {[%clk 0:02:56.3]} 9. Nc4 {[%clk 0:01:51.2]} 9... O-O
{[%clk 0:02:53.9]} 10. a4 {[%clk 0:01:49.2]} 10... Ne8 {[%clk 0:02:47.2]} 11. f3
{[%clk 0:01:22]} 11... f5 {[%clk 0:02:42.2]} 12. a5 {[%clk 0:01:13.3]} 12... Bg5
{[%clk 0:02:32.8]} 13. Bxg5 {[%clk 0:01:07.2]} 13... Qxg5 {[%clk 0:02:31.8]} 14.
Qd2 {[%clk 0:01:08.1]} 14... f4 {[%clk 0:02:19.2]} 15. Rf2 {[%clk 0:01:08.1]}
15... Rf6 {[%clk 0:02:12.6]} 16. Bf1 {[%clk 0:01:05]} 16... Nf8 {[%clk
0:02:10.5]} 17. Ne2 {[%clk 0:00:44.8]} 17... Rh6 {[%clk 0:02:05.5]} 18. g3
{[%clk 0:00:42.5]} 18... Ng6 {[%clk 0:02:03.6]} 19. Bg2 {[%clk 0:00:23.1]} 19...
Qh5 {[%clk 0:01:53.5]} 20. Bf1 {[%clk 0:00:12.2]} 20... fxg3 {[%clk 0:01:45.2]}
21. Nxg3 {[%clk 0:00:10.7]} 21... Qh4 {[%clk 0:01:44.7]} 22. Ne3 {[%clk
0:00:09.3]} 22... Nf4 {[%clk 0:01:42.2]} 23. Nef5 {[%clk 0:00:09.2]} 23... Bxf5
{[%clk 0:01:39.2]} 24. Nxf5 {[%clk 0:00:07.4]} 24... Rg6+ {[%clk 0:01:39]} 25.
Kh1 {[%clk 0:00:07.2]} 25... Qf6 {[%clk 0:01:31.1]} 26. Bb5 {[%clk 0:00:03.6]}
26... Rg5 {[%clk 0:01:24.3]} 0-1

[Event "*** Titled Tuesday Blitz"]
[Site "Chess.com"]
[Date "2020.04.28"]
[Round "1"]
[White "andy_rekt"]
[Black "PIwan"]
[Result "0-1"]
[WhiteElo "2200"]
[BlackElo "2542"]
[TimeControl "180+1"]
[EndTime "10:05:56 PDT"]
[Termination "PIwan won by resignation"]

1. d4 {[%clk 0:03:00.9]} 1... e6 {[%clk 0:02:54.6]} 2. c4 {[%clk 0:03:00.5]}
2... f5 {[%clk 0:02:27.6]} 3. a3 {[%clk 0:02:57.2]} 3... Nf6 {[%clk 0:02:27.8]}
4. Nc3 {[%clk 0:02:56.2]} 4... d5 {[%clk 0:02:28.3]} 5. Bf4 {[%clk 0:02:50.6]}
5... c6 {[%clk 0:02:28.6]} 6. e3 {[%clk 0:02:47.2]} 6... Be7 {[%clk 0:02:28.7]}
7. h3 {[%clk 0:02:46.4]} 7... O-O {[%clk 0:02:29.1]} 8. Bd3 {[%clk 0:02:43.7]}
8... Nbd7 {[%clk 0:02:27.3]} 9. cxd5 {[%clk 0:02:27.6]} 9... cxd5 {[%clk
0:02:22.6]} 10. Nf3 {[%clk 0:02:02]} 10... Ne4 {[%clk 0:02:20.2]} 11. Qc2 {[%clk
0:01:54.3]} 11... Nb6 {[%clk 0:02:14.5]} 12. g4 {[%clk 0:01:47.7]} 12... Bd7
{[%clk 0:01:57.2]} 13. gxf5 {[%clk 0:01:44.8]} 13... exf5 {[%clk 0:01:55.9]} 14.
Ne5 {[%clk 0:01:42.9]} 14... Rc8 {[%clk 0:01:49.1]} 15. Rg1 {[%clk 0:01:36.7]}
15... Bh4 {[%clk 0:01:36.9]} 16. Rg2 {[%clk 0:01:31]} 16... Ba4 {[%clk 0:01:27]}
17. Qe2 {[%clk 0:00:29.3]} 17... Nxc3 {[%clk 0:01:25.9]} 18. bxc3 {[%clk
0:00:28.2]} 18... Rxc3 {[%clk 0:01:26.8]} 19. Bh6 {[%clk 0:00:19.4]} 19... Bf6
{[%clk 0:01:21.2]} 20. Kd2 {[%clk 0:00:11.5]} 20... Qc7 {[%clk 0:01:16.7]} 21.
Rag1 {[%clk 0:00:09.5]} 21... Rc2+ {[%clk 0:01:11.7]} 22. Bxc2 {[%clk
0:00:08.8]} 22... Qxc2+ {[%clk 0:01:12.6]} 23. Ke1 {[%clk 0:00:09.4]} 23... Qc1+
{[%clk 0:01:12.9]} 0-1

[Event "*** Titled Tuesday Blitz"]
[Site "Chess.com"]
[Date "2020.04.28"]
[Round "1"]
[White "GuerrieroFromLevant"]
[Black "Gahan-MG"]
[Result "0-1"]
[WhiteElo "2326"]
[BlackElo "2654"]
[TimeControl "180+1"]
[EndTime "10:06:01 PDT"]
[Termination "Gahan-MG won by resignation"]

1. e4 {[%clk 0:03:00.1]} 1... Nf6 {[%clk 0:02:58.7]} 2. e5 {[%clk 0:02:59.3]}
2... Nd5 {[%clk 0:02:58.8]} 3. d4 {[%clk 0:02:58.4]} 3... d6 {[%clk 0:02:59]} 4.
Nf3 {[%clk 0:02:56.3]} 4... g6 {[%clk 0:02:58.9]} 5. c4 {[%clk 0:02:54.5]} 5...
Nb6 {[%clk 0:02:58.8]} 6. exd6 {[%clk 0:02:53]} 6... exd6 {[%clk 0:02:59.7]} 7.
Bg5 {[%clk 0:02:50.2]} 7... Be7 {[%clk 0:02:57.9]} 8. Qe2 {[%clk 0:02:42]} 8...
Nc6 {[%clk 0:02:49.1]} 9. d5 {[%clk 0:02:32.7]} 9... Nb4 {[%clk 0:02:45.9]} 10.
Na3 {[%clk 0:02:22.7]} 10... Nd3+ {[%clk 0:02:42.2]} 11. Qxd3 {[%clk 0:02:20.3]}
11... Bxg5 {[%clk 0:02:42.3]} 12. Be2 {[%clk 0:02:06.4]} 12... Bf5 {[%clk
0:02:39.9]} 13. Qb3 {[%clk 0:02:02.1]} 13... Bf6 {[%clk 0:02:36.7]} 14. O-O-O
{[%clk 0:01:50.6]} 14... O-O {[%clk 0:02:20.7]} 15. h4 {[%clk 0:01:31.8]} 15...
h5 {[%clk 0:02:20.3]} 16. Nd4 {[%clk 0:01:25.8]} 16... Bd7 {[%clk 0:02:17.6]}
17. Nac2 {[%clk 0:01:22]} 17... Re8 {[%clk 0:02:15.9]} 18. Bd3 {[%clk
0:01:21.9]} 18... Ba4 {[%clk 0:02:12]} 19. Qc3 {[%clk 0:01:15.8]} 19... c5
{[%clk 0:02:12]} 20. dxc6 {[%clk 0:01:14.1]} 20... bxc6 {[%clk 0:02:11.1]} 21.
Qd2 {[%clk 0:01:11.7]} 21... c5 {[%clk 0:02:09.4]} 22. Nf3 {[%clk 0:01:07.3]}
22... Bg7 {[%clk 0:02:03.7]} 23. Rde1 {[%clk 0:01:00.9]} 23... Qf6 {[%clk
0:01:59.6]} 24. Ne3 {[%clk 0:01:00.7]} 24... Bc6 {[%clk 0:01:50.1]} 25. Ng5
{[%clk 0:00:53.5]} 25... Na4 {[%clk 0:01:47.3]} 26. Nd1 {[%clk 0:00:50.8]} 26...
Bxg2 {[%clk 0:01:44.2]} 27. Rxe8+ {[%clk 0:00:44.9]} 27... Rxe8 {[%clk
0:01:43.5]} 28. Rg1 {[%clk 0:00:44.1]} 28... Bc6 {[%clk 0:01:42.2]} 29. b3
{[%clk 0:00:26.5]} 29... Qa1+ {[%clk 0:01:39.3]} 30. Bb1 {[%clk 0:00:27.1]}
30... Nc3 {[%clk 0:01:33.2]} 31. Nxc3 {[%clk 0:00:23.6]} 31... Bxc3 {[%clk
0:01:32.6]} 32. Qc2 {[%clk 0:00:23.6]} 32... Bd4 {[%clk 0:01:23.5]} 33. Nxf7
{[%clk 0:00:20.5]} 33... Be4 {[%clk 0:01:18.6]} 34. Rxg6+ {[%clk 0:00:15.8]}
34... Kxf7 {[%clk 0:01:18]} 0-1

[Event "*** Titled Tuesday Blitz"]
[Site "Chess.com"]
[Date "2020.04.28"]
[Round "1"]
[White "gvanna"]
[Black "Grischuk"]
[Result "0-1"]
[WhiteElo "2469"]
[BlackElo "3121"]
[TimeControl "180+1"]
[EndTime "10:06:03 PDT"]
[Termination "Grischuk won on time"]

1. e4 {[%clk 0:03:00.9]} 1... c5 {[%clk 0:02:59]} 2. Nf3 {[%clk 0:03:00.5]} 2...
d6 {[%clk 0:02:58.7]} 3. d4 {[%clk 0:03:00]} 3... cxd4 {[%clk 0:02:59.6]} 4.
Nxd4 {[%clk 0:02:59.8]} 4... Nf6 {[%clk 0:03:00]} 5. Nc3 {[%clk 0:02:59.7]} 5...
a6 {[%clk 0:03:00.5]} 6. Be3 {[%clk 0:02:59.2]} 6... e6 {[%clk 0:02:59.9]} 7. f3
{[%clk 0:02:56.3]} 7... b5 {[%clk 0:02:59.6]} 8. g4 {[%clk 0:02:52.8]} 8... Nbd7
{[%clk 0:02:48.6]} 9. Qd2 {[%clk 0:02:45.2]} 9... Bb7 {[%clk 0:02:46.5]} 10.
O-O-O {[%clk 0:02:38.3]} 10... Nb6 {[%clk 0:02:38.1]} 11. g5 {[%clk 0:02:28.9]}
11... Nfd7 {[%clk 0:02:37.7]} 12. h4 {[%clk 0:02:26.2]} 12... Rc8 {[%clk
0:02:35.8]} 13. Rg1 {[%clk 0:02:09.6]} 13... Ne5 {[%clk 0:02:29.8]} 14. Qe1
{[%clk 0:01:35.6]} 14... Qc7 {[%clk 0:02:16.9]} 15. f4 {[%clk 0:01:21.9]} 15...
Nec4 {[%clk 0:02:14.1]} 16. Bxc4 {[%clk 0:01:19.2]} 16... Nxc4 {[%clk
0:02:12.8]} 17. Kb1 {[%clk 0:00:56.8]} 17... b4 {[%clk 0:02:08.5]} 18. Na4
{[%clk 0:00:48.2]} 18... Bxe4 {[%clk 0:02:06.2]} 19. Bc1 {[%clk 0:00:40.2]}
19... d5 {[%clk 0:02:02.2]} 20. f5 {[%clk 0:00:30.3]} 20... e5 {[%clk
0:01:59.1]} 21. b3 {[%clk 0:00:17.1]} 21... exd4 {[%clk 0:01:36.5]} 22. bxc4
{[%clk 0:00:16.8]} 22... Qxc4 {[%clk 0:01:37.4]} 23. Rd2 {[%clk 0:00:12.5]}
23... b3 {[%clk 0:01:23]} 24. Nb2 {[%clk 0:00:07]} 24... bxc2+ {[%clk
0:01:18.3]} 25. Ka1 {[%clk 0:00:07.1]} 25... Qc6 {[%clk 0:01:09]} 26. Rxd4
{[%clk 0:00:06.5]} 26... Bc5 {[%clk 0:01:08.4]} 0-1